bitfinex/quotes_ETHUSD_20241023
["timestamp","ask_amount","ask_price","bid_price","bid_amount"]
[1729641601618,0.04032465,2623.0,2622.7,0.798]
[1729641603412,0.04032465,2623.0,2622.3,0.79951071]
[1729641603413,0.04032465,2623.0,2622.9,0.7852]
[1729641604712,0.04032465,2623.0,2622.9,2.46586451]
[1729641604912,0.04032465,2623.0,2622.9,3.26537522]
[1729641605437,0.01,2624.8,2623.2,0.7852]
[1729641605438,0.8186,2624.7,2623.2,0.7852]
[1729641605642,0.8186,2624.7,2624.1,2.46586451]
[1729641605811,0.28973551,2624.6,2624.1,0.7852]
[1729641606433,0.28973551,2624.6,2623.8,0.79963422]
[1729641606434,0.39799217,2625.4,2624.6,0.7852]
[1729641606596,1.199451,2625.8,2625.0,0.7852]
[1729641606804,0.01,2626.8,2625.7,0.56]
[1729641606805,0.39786077,2626.8,2625.7,0.56]
[1729641607004,0.8286,2627.9,2626.3,0.7952]
[1729641607244,0.08944418,2628.8,2626.8,0.7852]
[1729641607398,0.40759533,2628.6,2627.3,0.01]
[1729641607598,0.41639755,2628.8,2627.1,0.7852]
[1729641607599,0.01,2628.0,2627.1,0.7852]
[1729641607799,1.68066451,2627.2,2626.7,0.7852]
[1729641607994,1.68066451,2626.8,2626.0,0.7852]
[1729641608229,0.01,2627.0,2625.4,0.7852]
[1729641608414,0.01,2627.0,2625.5,0.01]
[1729641608620,0.8386,2627.3,2625.4,0.7852]
[1729641608853,0.01,2627.1,2625.5,0.07615045]
[1729641608994,0.01,2627.1,2625.4,0.7852]
[1729641608995,0.01,2627.0,2625.4,0.7852]
[1729641609198,0.01,2626.9,2625.4,0.7852]
[1729641609400,3.0,2626.8,2625.4,4.52098652]
[1729641609637,0.67357865,2626.7,2625.7,3.73578652]
[1729641609838,3.0,2626.8,2625.4,4.52098652]
[1729641609839,3.55,2626.8,2625.4,4.52098652]
[1729641610137,3.0,2626.5,2625.4,0.7852]
[1729641610634,3.01,2626.5,2625.4,0.7852]
[1729641610997,3.0,2626.5,2625.4,0.7852]
[1729641611203,0.67357865,2626.4,2625.4,0.7852]
[1729641611804,0.67357865,2626.4,2625.5,0.07617006]
[1729641612005,0.01,2626.9,2625.6,3.73578652]
[1729641612202,3.73578652,2627.2,2625.6,3.73578652]
[1729641612441,0.45543865,2627.1,2625.7,0.37457865]
[1729641612804,0.46543865,2627.1,2625.7,0.37457865]
[1729641613205,3.73578652,2626.9,2625.4,0.7852]
[1729641613821,3.0,2626.8,2625.4,0.7852]
[1729641614557,3.0,2626.8,2625.5,0.07615527]
[1729641615517,3.0,2626.8,2625.4,0.7852]
[1729641615707,0.55,2627.0,2625.5,0.07615529]
[1729641615913,0.40254387,2626.9,2625.5,0.53586947]
[1729641616245,0.40254387,2626.9,2625.6,0.0761553]
[1729641616442,4.13833039,2626.9,2625.4,0.7852]
[1729641616864,3.0,2626.8,2625.4,0.7852]
[1729641617159,0.71383304,2626.7,2625.5,0.45209865]
[1729641617362,0.71383304,2626.7,2625.4,0.7852]
[1729641618146,3.0,2626.4,2625.4,0.7852]
[1729641619453,1.3686,2626.6,2625.4,0.7852]
[1729641619660,1.3686,2626.6,2625.5,0.07616923]
[1729641619825,0.5092433,2626.5,2625.5,0.07616923]
[1729641620453,0.5092433,2626.5,2625.4,0.7852]
[1729641620895,0.5092433,2626.5,2625.5,0.0761675]
[1729641621744,0.8186,2626.6,2625.5,0.0761675]
[1729641622629,3.0,2626.9,2625.5,0.0761675]
[1729641622829,3.0,2626.9,2625.4,0.7852]
[1729641623229,3.39766097,2626.9,2625.5,0.07615822]
[1729641623681,3.39766097,2626.9,2625.4,0.7852]
[1729641623840,0.71434475,2626.8,2625.5,3.8119401]
[1729641624026,0.39766097,2626.9,2625.5,3.8119401]
[1729641624991,0.39766097,2626.9,2625.5,3.73578652]
[1729641625183,0.39766097,2626.9,2625.6,0.0761536]
[1729641626679,3.39766097,2626.9,2625.5,3.73578652]
[1729641627467,3.39766097,2626.9,2625.4,0.7852]
[1729641627643,0.71334475,2626.8,2625.4,0.7852]
[1729641629181,3.73578652,2626.7,2625.4,0.7852]
[1729641629391,3.73578652,2626.2,2625.4,0.7852]
[1729641629961,3.73578652,2626.2,2625.0,0.7896]
[1729641630362,3.42819,2625.3,2625.0,0.7896]
[1729641630676,3.73578652,2625.9,2625.0,0.7896]
[1729641630677,3.0,2625.8,2625.0,0.7896]
[1729641630864,3.67357865,2625.8,2625.0,0.7896]
[1729641631065,3.42832,2625.2,2625.0,0.7896]
[1729641631399,3.42825,2625.3,2624.6,4.21863]
[1729641631600,3.42851,2625.1,2624.6,0.7896]
[1729641631899,3.42881,2624.9,2624.6,0.7896]
[1729641632108,3.42888,2624.8,2624.6,0.7896]
[1729641632273,3.42888,2624.8,2624.2,3.42954]
[1729641632274,3.42902,2624.7,2624.1,0.7896]
[1729641632482,3.42857,2625.0,2624.2,6.9354195]
[1729641632788,3.42878,2624.9,2624.3,0.84869976]
[1729641633007,3.42878,2624.9,2624.3,4.27817976]
[1729641633503,3.42916,2624.6,2624.3,0.77250195]
[1729641633801,3.42897,2624.7,2624.1,4.21926]
[1729641634713,3.42897,2624.7,2624.2,3.42959]
[1729641635200,3.42889,2624.8,2624.3,0.07619989]
[1729641635415,3.42889,2624.8,2624.3,3.50560989]
[1729641636080,6.85784,2624.8,2624.3,0.07619989]
[1729641636276,3.42889,2624.8,2624.3,0.50573388]
[1729641637175,3.42864,2625.0,2624.3,0.50573388]
[1729641637376,3.42882,2624.9,2624.3,3.93512388]
[1729641638798,3.42888,2624.8,2624.3,0.50573388]
[1729641639318,3.42882,2624.9,2624.4,0.73647839]
[1729641639670,6.85759,2624.9,2624.4,3.42934]
[1729641640120,4.2037468,2625.5,2624.8,3.42881]
[1729641640121,3.8258568,2625.5,2624.8,3.42881]
[1729641640284,0.3978468,2625.5,2624.8,3.42883]
[1729641640615,3.42734,2626.0,2625.4,3.42797]
[1729641640817,0.39775362,2625.9,2625.4,3.42797]
[1729641640979,0.39775362,2625.9,2625.5,0.07616775]
[1729641641176,3.42734,2626.0,2625.4,3.42797]
[1729641641177,6.85468,2626.0,2625.4,3.42797]
[1729641641376,3.42741,2625.9,2625.4,3.42797]
[1729641641598,0.39773329,2626.4,2625.2,0.8285]
[1729641641599,3.42774,2625.7,2625.2,0.8285]
[1729641641803,3.42787,2625.6,2625.2,0.8285]
[1729641642685,3.42787,2625.6,2625.2,0.90467533]
[1729641643008,3.42787,2625.6,2625.2,1.68083286]
[1729641643380,3.428,2625.5,2625.2,1.60465753]
[1729641643602,6.8555,2625.7,2625.2,1.60465753]
[1729641644131,3.42783,2625.6,2625.2,1.68083288]
[1729641644329,3.42783,2625.6,2625.2,1.60465753]
[1729641645192,3.42772,2625.7,2625.2,1.60465753]
[1729641645532,6.8555,2625.7,2625.3,0.51092429]
[1729641645686,3.42772,2625.7,2625.3,0.51092429]
[1729641647388,6.85548,2625.7,2625.3,0.51092429]
[1729641647791,3.42772,2625.7,2625.2,1.68083293]
[1729641648433,3.42772,2625.7,2625.2,1.60465753]
[1729641648718,6.8555,2625.7,2625.2,1.60465753]
[1729641649132,3.42772,2625.7,2625.2,1.68083294]
[1729641650126,3.42772,2625.7,2625.2,1.60465753]
[1729641650330,3.42772,2625.7,2625.2,1.68083294]
[1729641650704,3.42772,2625.7,2625.2,1.60465753]
[1729641651488,3.42772,2625.7,2625.2,1.68083294]
[1729641651693,3.42772,2625.7,2625.2,1.60465753]
[1729641651694,3.42783,2625.6,2625.2,1.60465753]
[1729641651893,3.42783,2625.6,2625.2,1.68083294]
[1729641653488,3.42783,2625.6,2625.2,1.60465753]
[1729641653812,3.42783,2625.6,2625.2,1.68083295]
[1729641654011,3.42783,2625.6,2625.2,1.60465753]
[1729641654214,3.42783,2625.6,2625.2,1.68083295]
[1729641654416,3.42783,2625.6,2625.2,1.60465753]
[1729641654819,3.42783,2625.6,2625.2,1.68083296]
[1729641655219,3.42783,2625.6,2625.2,1.60465753]
[1729641655838,3.42783,2625.6,2625.2,1.68083296]
[1729641656248,3.42783,2625.6,2625.2,1.60465753]
[1729641656744,6.85577,2625.6,2625.2,0.8285]
[1729641656904,3.42794,2625.5,2625.2,0.8285]
[1729641658132,3.42791,2625.5,2625.2,0.8285]
[1729641658479,3.42816,2625.4,2625.2,0.8285]
[1729641659358,3.42816,2625.4,2624.9,0.8282]
[1729641659524,3.42824,2625.3,2624.9,0.8282]
[1729641660717,0.7952,2625.2,2624.3,5.05720422]
[1729641660915,3.4289,2624.8,2624.3,0.8282]
[1729641661129,3.42876,2624.9,2624.3,4.25758]
[1729641661447,3.42851,2625.1,2624.6,3.42906]
[1729641661939,3.42863,2625.0,2624.5,3.42922]
[1729641662147,3.42863,2625.0,2624.5,4.57910076]
[1729641662715,3.42857,2625.0,2624.5,4.57910076]
[1729641662919,3.42851,2625.1,2624.5,4.57910076]
[1729641662920,3.42871,2624.9,2624.5,4.57910076]
[1729641663133,6.85749,2624.9,2624.5,1.14988076]
[1729641663329,6.85749,2624.9,2624.3,7.68701]
[1729641663623,6.85749,2624.9,2624.4,0.07619717]
[1729641664134,6.85749,2624.9,2624.3,4.2576]
[1729641664135,3.4289,2624.8,2624.3,4.2576]
[1729641664327,3.42819,2625.3,2624.3,4.2576]
[1729641664328,3.42905,2624.7,2624.3,0.8282]
[1729641664655,0.342905,2624.7,2624.3,0.8282]
[1729641664815,3.42896,2624.7,2624.3,0.8282]
[1729641665211,3.42896,2624.7,2624.3,4.25768]
[1729641665451,3.4288,2624.9,2624.3,4.25768]
[1729641665656,3.4288,2624.9,2624.4,3.50555378]
[1729641666462,3.42878,2624.9,2624.4,3.42935]
[1729641666643,3.42878,2624.9,2624.4,4.198053]
[1729641667149,6.85757,2624.9,2624.4,4.198053]
[1729641668041,3.42878,2624.9,2624.4,4.198053]
[1729641668555,6.85757,2624.9,2624.4,4.198053]
[1729641668858,3.42878,2624.9,2624.4,4.198053]
[1729641669059,3.42878,2624.9,2624.5,0.5026253]
[1729641669217,3.42878,2624.9,2624.5,3.9318153]
[1729641669419,6.42857,2625.0,2624.5,3.9318153]
[1729641669748,6.42857,2625.0,2624.6,0.07619423]
[1729641670059,3.42852,2625.1,2624.6,4.32578348]
[1729641670369,3.42833,2625.2,2624.7,0.8282]
[1729641670659,3.42846,2625.1,2624.7,0.8282]
[1729641670828,3.42873,2624.9,2624.7,0.8282]
[1729641671034,3.42873,2624.9,2624.7,1.04334246]
[1729641673656,3.42857,2625.0,2624.7,1.04334246]
[1729641674627,4.22339,2625.3,2624.5,0.5026253]
[1729641674826,3.42891,2624.8,2624.4,0.8282]
[1729641675963,6.85786,2624.8,2624.4,0.8282]
[1729641676255,3.42891,2624.8,2624.4,0.8282]
[1729641676441,3.42891,2624.8,2624.4,1.253964]
[1729641676646,3.42831,2625.2,2624.4,1.253964]
[1729641676647,3.42865,2625.0,2624.4,1.253964]
[1729641676850,3.42885,2624.8,2624.4,1.253964]
[1729641677052,6.85776,2624.8,2624.4,1.253964]
[1729641678503,3.42899,2624.7,2624.4,1.253964]
[1729641678852,3.42899,2624.7,2624.4,1.33016337]
[1729641679791,3.42854,2625.1,2624.7,0.8085]
[1729641679981,3.42867,2625.0,2624.7,0.8085]
[1729641682155,3.42845,2625.1,2624.7,0.8085]
[1729641682495,3.4287,2624.9,2624.7,0.8085]
[1729641683176,3.42857,2625.0,2624.7,0.8085]
[1729641686092,3.42883,2624.8,2624.2,0.8085]
[1729641686280,3.42896,2624.7,2624.2,4.23804]
[1729641687358,6.858,2624.7,2624.2,4.23804]
[1729641687659,3.42896,2624.7,2624.2,4.23804]
[1729641687874,3.42896,2624.7,2624.2,5.00481]
[1729641688796,3.35172918,2624.7,2624.2,5.00481]
[1729641689287,3.35172918,2624.7,2624.2,0.8085]
[1729641689288,3.42904,2624.7,2624.2,0.8085]
[1729641689491,3.42904,2624.7,2624.2,4.23808]
[1729641690789,6.85812,2624.7,2624.2,4.23808]
[1729641690958,3.42904,2624.7,2624.2,0.8085]
[1729641691160,3.42904,2624.7,2624.2,4.2381]
[1729641691390,3.42904,2624.7,2624.3,0.766774]
[1729641692167,3.42904,2624.7,2624.4,0.07619958]
[1729641692393,3.42878,2624.9,2624.4,0.07619958]
[1729641692598,3.42885,2624.8,2624.4,0.07619958]
[1729641693328,3.42885,2624.8,2624.4,0.0761996]
[1729641693644,3.42885,2624.8,2624.3,4.196184]
[1729641694637,3.42885,2624.8,2624.4,0.07619962]
[1729641694938,3.42885,2624.8,2624.3,4.196184]
[1729641695236,3.42861,2625.0,2624.5,3.42912]
[1729641695439,3.42861,2625.0,2624.6,0.86899296]
[1729641695729,3.42877,2624.9,2624.6,0.7928]
[1729641697298,3.42857,2625.0,2624.6,0.7928]
[1729641697492,3.42857,2625.0,2624.6,1.34886008]
[1729641697739,3.42857,2625.0,2624.6,1.27266716]
[1729641698031,3.42872,2624.9,2624.6,1.27266716]
[1729641698743,3.42872,2624.9,2624.6,1.34886043]
[1729641699850,3.42872,2624.9,2624.6,1.27266716]
[1729641700908,3.4285,2625.1,2624.6,1.27266716]
[1729641701134,3.42861,2625.0,2624.6,0.7928]
[1729641701508,3.4287,2624.9,2624.6,0.7928]
[1729641702008,3.4287,2624.9,2624.6,0.86899329]
[1729641702909,3.4287,2624.9,2624.6,0.7928]
[1729641703824,6.8575,2624.9,2624.6,0.7928]
[1729641704023,3.4287,2624.9,2624.6,1.22263333]
[1729641704520,3.4287,2624.9,2624.6,1.29882664]
[1729641705426,3.4287,2624.9,2624.6,1.22263333]
[1729641705628,3.42883,2624.8,2624.6,1.22263333]
[1729641707050,3.42883,2624.8,2624.6,0.7928]
[1729641712145,3.42918,2624.6,2624.3,0.7736]
[1729641715120,3.42918,2624.6,2624.4,0.3812]
[1729641715320,3.42918,2624.6,2624.3,0.7736]
[1729641715527,3.42918,2624.6,2624.3,1.27389742]
[1729641716048,3.42923,2624.5,2624.3,1.27389742]
[1729641716914,6.85854,2624.5,2624.3,1.27389742]
[1729641717220,3.42923,2624.5,2624.1,4.22936422]
[1729641720266,3.42923,2624.5,2624.1,5.90324234]
[1729641720556,3.4291,2624.6,2624.1,5.90324234]
[1729641721257,3.4291,2624.6,2624.1,5.90319234]
[1729641721466,3.42897,2624.7,2624.3,1.67387812]
[1729641721667,3.42897,2624.7,2624.4,0.58654098]
[1729641721824,6.858,2624.7,2624.4,0.58654098]
[1729641722024,6.858,2624.7,2624.3,1.67387812]
[1729641722462,3.42884,2624.8,2624.3,5.10333812]
[1729641722672,3.42865,2625.0,2624.5,5.10303812]
[1729641722844,3.42865,2625.0,2624.6,0.0761935]
[1729641723285,3.42844,2625.1,2624.6,2.4253182]
[1729641723594,3.42827,2625.3,2624.9,0.8003]
[1729641723757,3.42827,2625.3,2624.9,0.87648421]
[1729641724085,0.39780636,2625.9,2625.1,5.10221812]
[1729641724086,3.4276,2625.8,2625.1,5.10221812]
[1729641724371,3.42772,2625.7,2625.2,0.58639294]
[1729641724931,3.4276,2625.8,2625.2,0.51022181]
[1729641725138,3.4278,2625.6,2625.3,0.07617261]
[1729641725883,3.42766,2625.7,2625.3,0.07617291]
[1729641726178,3.42747,2625.9,2625.4,0.8003]
[1729641726329,3.42722,2626.1,2625.5,0.43045429]
[1729641726533,3.42743,2625.9,2625.5,0.43045429]
[1729641727131,3.427,2626.2,2625.5,0.43045429]
[1729641727334,3.42746,2625.9,2625.4,0.8003]
[1729641727591,3.42753,2625.8,2625.4,0.8003]
[1729641727873,3.42786,2625.6,2625.4,0.8003]
[1729641728241,3.42791,2625.5,2625.0,0.8003]
[1729641728442,0.8205,2625.8,2625.0,0.8003]
[1729641728443,3.42811,2625.4,2625.0,0.8003]
[1729641728635,3.42798,2625.5,2625.0,0.8003]
[1729641728842,3.42815,2625.4,2625.0,0.8003]
[1729641729049,3.42837,2625.2,2625.0,0.8003]
[1729641729256,3.42837,2625.2,2624.7,0.8003]
[1729641729532,3.42837,2625.2,2624.7,4.82234237]
[1729641729772,3.42837,2625.2,2624.7,1.39346237]
[1729641729983,3.4286,2625.0,2624.7,1.39346237]
[1729641730145,3.4286,2625.0,2624.6,0.67524658]
[1729641730146,3.42863,2625.0,2624.6,0.67524658]
[1729641730835,3.42839,2625.2,2624.7,3.50513113]
[1729641731265,3.42818,2625.3,2624.8,3.42882]
[1729641731773,3.42812,2625.4,2624.7,3.50514113]
[1729641731774,3.42832,2625.2,2624.7,3.50514113]
[1729641732069,3.42832,2625.2,2624.8,0.76093477]
[1729641732271,6.85671,2625.2,2624.8,0.76093477]
[1729641732477,3.42832,2625.2,2624.8,0.76093477]
[1729641732637,6.85671,2625.2,2624.8,0.76093477]
[1729641732842,6.85671,2625.2,2624.7,0.07619113]
[1729641733239,3.42832,2625.2,2624.7,0.07619113]
[1729641733460,6.85671,2625.2,2624.7,0.07619113]
[1729641733663,3.42832,2625.2,2624.7,3.50508113]
[1729641733974,6.85618,2625.4,2624.8,3.42876]
[1729641734141,3.4282,2625.3,2624.8,3.84677977]
[1729641735276,3.42831,2625.2,2624.7,3.42886]
[1729641735483,3.42844,2625.1,2624.5,4.22939]
[1729641735685,3.42844,2625.1,2624.6,3.429]
[1729641735842,3.42844,2625.1,2624.7,0.765839]
[1729641737964,3.42859,2625.0,2624.7,0.765839]
[1729641738903,3.42871,2624.9,2624.5,4.22939]
[1729641739107,3.42871,2624.9,2624.6,0.07619245]
[1729641739400,3.42871,2624.9,2624.5,0.8003]
[1729641739561,3.42871,2624.9,2624.6,0.07619242]
[1729641739899,3.42871,2624.9,2624.6,0.50676966]
[1729641740264,3.42871,2624.9,2624.6,0.07619242]
[1729641743904,6.857,2625.1,2624.6,0.07619242]
[1729641744497,3.42844,2625.1,2624.6,3.50517242]
[1729641745116,7.16481825,2625.7,2624.6,3.50517242]
[1729641745117,3.42798,2625.5,2625.0,0.7874]
[1729641745275,3.0,2625.4,2625.0,4.29213185]
[1729641745477,4.18644,2625.7,2625.0,4.29213185]
[1729641745478,3.42839,2625.2,2625.0,0.7874]
[1729641745798,3.42839,2625.2,2624.8,0.7874]
[1729641746000,3.42839,2625.2,2624.8,1.209028]
[1729641746405,3.42818,2625.3,2624.8,1.209028]
[1729641746722,3.42832,2625.2,2624.8,0.7874]
[1729641747572,6.8567,2625.2,2624.8,0.7874]
[1729641748481,3.42844,2625.1,2624.8,0.7874]
[1729641749517,3.42844,2625.1,2624.8,0.86358675]
[1729641749714,3.42844,2625.1,2624.8,0.7874]
[1729641749919,3.42858,2625.0,2624.8,0.7874]
[1729641750934,3.42844,2625.1,2624.8,0.7874]
[1729641752933,6.857,2625.1,2624.8,0.7874]
[1729641753128,6.85696,2625.1,2624.8,0.7874]
[1729641754733,3.42844,2625.1,2624.8,0.7874]
[1729641759239,3.42831,2625.2,2624.8,0.7874]
[1729641760031,3.42845,2625.1,2624.8,0.7874]
[1729641760532,3.42845,2625.1,2624.8,0.86358778]
[1729641762202,3.42845,2625.1,2624.8,0.7874]
[1729641766333,3.42832,2625.2,2624.8,1.209048]
[1729641766841,3.42844,2625.1,2624.8,1.209048]
[1729641767008,5.10138946,2625.3,2624.8,1.209048]
[1729641767211,3.42833,2625.2,2624.8,1.209048]
[1729641770243,3.42833,2625.2,2624.8,1.28523601]
[1729641770444,3.42849,2625.1,2624.8,1.28523601]
[1729641771205,3.42849,2625.1,2624.8,1.209048]
[1729641771407,3.42833,2625.2,2624.8,1.209048]
[1729641771619,3.42844,2625.1,2624.8,1.209048]
[1729641772425,3.42844,2625.1,2624.8,1.28523608]
[1729641773120,3.42844,2625.1,2624.8,1.209048]
[1729641773746,6.85673,2625.2,2624.8,1.209048]
[1729641773908,3.42845,2625.1,2624.8,1.209048]
[1729641775528,3.42833,2625.2,2624.8,1.209048]
[1729641775731,3.42833,2625.2,2624.8,1.28523615]
[1729641776113,6.85673,2625.2,2624.8,1.28523615]
[1729641776313,3.42844,2625.1,2624.8,1.28523615]
[1729641777142,3.42844,2625.1,2624.8,1.209048]
[1729641777342,3.42844,2625.1,2624.8,0.7874]
[1729641780959,3.42832,2625.2,2624.8,0.7874]
[1729641781144,3.42832,2625.2,2624.8,0.86358823]
[1729641781145,6.85674,2625.2,2624.8,0.86358823]
[1729641781342,6.85674,2625.2,2624.8,0.7874]
[1729641781944,6.85674,2625.2,2624.8,0.86358824]
[1729641782952,3.42832,2625.2,2624.8,0.86358824]
[1729641783250,3.42832,2625.2,2624.8,6.59463308]
[1729641783461,3.42819,2625.3,2624.8,4.92150362]
[1729641783753,3.42819,2625.3,2624.8,5.72113784]
[1729641784057,3.42792,2625.5,2625.0,3.42848]
[1729641784365,3.42824,2625.3,2624.8,5.6449596]
[1729641784720,3.42824,2625.3,2624.9,0.79963422]
[1729641784924,5.10136946,2625.3,2624.8,5.6449596]
[1729641785865,3.42833,2625.2,2624.8,1.58703422]
[1729641786022,5.10163946,2625.1,2624.8,0.7874]
[1729641787357,3.42851,2625.1,2624.8,0.7874]
[1729641788022,5.10163946,2625.1,2624.8,0.7874]
[1729641788249,3.42851,2625.1,2624.8,0.7874]
[1729641790266,5.10184946,2624.9,2624.7,0.79963422]
[1729641790466,3.42909,2624.6,2624.5,0.79963422]
[1729641790674,5.10221946,2624.6,2624.4,0.79963422]
[1729641791179,3.42909,2624.6,2624.4,0.79963422]
[1729641791357,5.10221946,2624.6,2624.3,0.79963422]
[1729641791555,5.10221946,2624.6,2624.3,1.53923653]
[1729641793268,3.42909,2624.6,2624.3,1.53923653]
[1729641794049,5.10221946,2624.6,2624.3,1.53923653]
[1729641794283,5.10221946,2624.6,2624.3,0.73960231]
[1729641795154,3.42909,2624.6,2624.3,0.73960231]
[1729641795596,5.10221946,2624.6,2624.3,0.73960231]
[1729641796098,3.42909,2624.6,2624.3,0.73960231]
[1729641796664,6.85776,2624.8,2624.3,0.81580421]
[1729641796869,8.53088946,2624.8,2624.4,0.66773137]
[1729641797197,5.10195946,2624.8,2624.4,0.66773137]
[1729641797899,3.0,2625.3,2624.8,0.7588]
[1729641798114,3.42799,2625.5,2625.0,3.42854]
[1729641798402,5.10111946,2625.5,2625.0,3.42854]
[1729641798712,1.67312946,2625.4,2625.0,3.42854]
[1729641798919,3.42775,2625.7,2625.0,6.03059741]
[1729641799234,1.96501965,2626.4,2625.0,6.03059741]
[1729641799235,3.42735,2626.0,2625.5,5.93086946]
[1729641799397,5.86065946,2626.1,2625.6,3.50384344]
[1729641799398,3.42722,2626.1,2625.6,3.50384344]
[1729641799723,3.42722,2626.1,2625.7,0.07616156]
[1729641799894,3.42722,2626.1,2625.6,5.5341838]
[1729641799895,5.10034946,2626.1,2625.6,3.86105434]
[1729641800092,1.67312946,2626.2,2625.7,3.50369158]
[1729641800306,5.10006946,2626.3,2625.7,5.10066946]
[1729641800509,1.67312946,2626.2,2625.8,0.8299]
[1729641800894,5.10019946,2626.2,2625.8,0.8299]
[1729641801127,5.10019946,2626.2,2625.5,0.8299]
[1729641801128,1.67312946,2625.9,2625.5,0.8299]
[1729641801499,8.52779946,2626.0,2625.5,0.8299]
[1729641802015,5.10045946,2626.0,2625.5,0.8299]
[1729641802400,1.67312946,2625.9,2625.5,0.8299]
[1729641802831,3.42759,2625.8,2625.5,0.8299]
[1729641804343,3.42759,2625.8,2625.5,1.34195286]
[1729641805752,3.42733,2626.0,2625.5,1.34195286]
[1729641805921,3.42733,2626.0,2625.5,3.01508232]
[1729641806121,3.42733,2626.0,2625.5,1.34195286]
[1729641806338,6.85469,2626.0,2625.5,1.41811977]
[1729641806509,6.85469,2626.0,2625.6,1.67312946]
[1729641806713,6.85469,2626.0,2625.5,3.09124923]
[1729641807051,6.85469,2626.0,2625.6,1.67312946]
[1729641807408,3.42739,2625.9,2625.5,1.34195286]
[1729641808627,3.42739,2625.9,2625.5,3.01508232]
[1729641808862,3.42739,2625.9,2625.5,3.09124926]
[1729641809053,3.42733,2626.0,2625.5,6.51915926]
[1729641809574,3.42733,2626.0,2625.5,6.44299232]
[1729641809975,3.42696,2626.3,2626.0,0.8299]
[1729641810353,3.42702,2626.2,2626.0,0.8299]
[1729641810689,3.42747,2625.9,2625.3,4.25802]
[1729641810995,6.85496,2625.9,2625.3,4.25802]
[1729641811197,3.42747,2625.9,2625.4,1.67312946]
[1729641811492,3.42747,2625.9,2625.4,2.60906541]
[1729641812260,3.42747,2625.9,2625.4,6.03709541]
[1729641812467,3.42747,2625.9,2625.5,1.67312946]
[1729641812674,3.42731,2626.0,2625.6,1.67312946]
[1729641812885,3.42731,2626.0,2625.7,0.8299]
[1729641813386,3.42722,2626.1,2625.7,0.8299]
[1729641813591,3.4274,2625.9,2625.7,0.8299]
[1729641815453,6.85487,2625.9,2625.7,0.8299]
[1729641815654,3.4274,2625.9,2625.7,0.8299]
[1729641815856,3.42722,2626.1,2625.7,2.50302946]
[1729641816159,3.42722,2626.1,2625.7,2.75333241]
[1729641816363,3.42722,2626.1,2625.7,1.08020295]
[1729641818295,6.85445,2626.1,2625.7,1.08020295]
[1729641818591,3.42733,2626.0,2625.7,0.8299]
[1729641820268,3.4274,2625.9,2625.7,0.8299]
[1729641821694,3.42767,2625.7,2625.5,0.8282]
[1729641822783,3.42767,2625.7,2625.2,1.67312946]
[1729641822960,3.42767,2625.7,2625.3,0.8282]
[1729641823158,3.42767,2625.7,2625.3,2.57750192]
[1729641823664,3.42767,2625.7,2625.3,0.90437246]
[1729641823895,6.85543,2625.7,2625.3,0.8282]
[1729641824098,6.85543,2625.7,2625.3,0.90437248]
[1729641824323,3.42782,2625.6,2625.3,0.8282]
[1729641824702,3.42804,2625.4,2625.3,0.8282]
[1729641828247,3.42792,2625.5,2625.3,0.8282]
[1729641828410,3.42793,2625.5,2625.3,0.8282]
[1729641829725,6.85594,2625.5,2625.1,2.47252946]
[1729641829924,6.85594,2625.5,2625.1,2.54870871]
[1729641830152,3.42793,2625.5,2625.1,2.54870871]
[1729641830747,6.85594,2625.5,2625.1,2.54870871]
[1729641830930,6.85594,2625.5,2625.1,2.47252946]
[1729641831128,6.85594,2625.5,2624.4,0.79963422]
[1729641831129,0.7633,2625.1,2624.4,0.79963422]
[1729641831334,0.7633,2625.1,2623.9,0.59624938]
[1729641831335,5.10234946,2624.5,2623.9,0.59624938]
[1729641831553,3.42923,2624.5,2623.9,1.67312946]
[1729641831769,3.42923,2624.5,2624.1,0.7994]
[1729641832135,3.42923,2624.5,2624.1,1.04665295]
[1729641832389,3.42946,2624.4,2624.1,1.04665295]
[1729641832681,3.42946,2624.4,2624.1,0.7994]
[1729641832832,3.42949,2624.3,2624.1,0.7994]
[1729641840895,0.7633,2624.6,2624.1,0.7994]
[1729641841052,3.42943,2624.4,2624.1,0.7994]
[1729641841554,3.42953,2624.3,2624.1,0.7994]
[1729641845806,3.42922,2624.5,2624.1,0.7994]
[1729641846004,3.42917,2624.6,2624.1,0.7994]
[1729641846168,3.42899,2624.7,2624.2,3.92872867]
[1729641846368,3.42911,2624.6,2624.2,0.49912867]
[1729641846811,3.42892,2624.8,2624.3,0.7912]
[1729641847014,3.42892,2624.8,2624.4,0.07619958]
[1729641847496,3.42892,2624.8,2624.4,0.07619959]
[1729641847698,6.85782,2624.8,2624.4,0.07619959]
[1729641848367,3.42897,2624.7,2624.3,0.7912]
[1729641848566,3.42897,2624.7,2624.4,0.464372]
[1729641850708,3.42897,2624.7,2624.3,0.7912]
[1729641850709,3.42935,2624.4,2624.3,0.7912]
[1729641850913,3.42954,2624.3,2623.9,0.7912]
[1729641851411,3.42963,2624.2,2623.9,0.7912]
[1729641851615,3.42948,2624.3,2623.9,1.213323]
[1729641851800,3.42935,2624.4,2623.9,1.213323]
[1729641851971,3.42935,2624.4,2623.9,4.643303]
[1729641852411,3.42935,2624.4,2624.0,1.75016284]
[1729641852613,6.85883,2624.4,2623.9,6.31725744]
[1729641852974,3.42935,2624.4,2623.9,6.31725744]
[1729641853173,3.42949,2624.3,2624.0,0.63172574]
[1729641853716,3.42942,2624.4,2624.0,0.63172574]
[1729641858240,3.42942,2624.4,2624.0,2.30568018]
[1729641860033,6.85889,2624.4,2624.0,2.30568018]
[1729641860396,3.42942,2624.4,2624.0,2.30568018]
[1729641860939,3.42942,2624.4,2624.0,0.63172574]
[1729641861722,6.85884,2624.4,2624.0,0.63172574]
[1729641861925,3.42942,2624.4,2624.0,2.30568018]
[1729641864416,6.85884,2624.4,2624.0,2.30568018]
[1729641865229,3.42942,2624.4,2624.0,2.30568018]